bitfinex-derivatives/quotes_BTCF0:USTF0_20250630
["timestamp","ask_amount","ask_price","bid_price","bid_amount"]
[1751264683262,1.10827325,108270.0,108260.0,0.5756562]
[1751264683659,1.16365215,108270.0,108260.0,0.60337174]
[1751264690568,0.60729215,108270.0,108260.0,0.60337174]
[1751264693172,0.63729215,108270.0,108260.0,0.60337174]
[1751264694859,0.58191325,108270.0,108260.0,0.60337174]
[1751264695156,0.63729215,108270.0,108260.0,0.60337174]
[1751264696268,0.58191325,108270.0,108260.0,0.57137174]
[1751264697272,0.63729215,108270.0,108260.0,0.57137174]
[1751264700167,0.43470074,108270.0,108260.0,0.57137174]
[1751264700375,0.63729215,108270.0,108260.0,0.57137174]
[1751264706276,0.63729215,108270.0,108260.0,0.53827174]
[1751264706881,0.51013215,108270.0,108260.0,0.53827174]
[1751264707077,0.52057325,108270.0,108260.0,0.74086315]
[1751264707279,0.52057325,108270.0,108260.0,0.80436315]
[1751264708382,1.07909325,108270.0,108260.0,0.80436315]
[1751264708981,0.39225325,108270.0,108260.0,0.80436315]
[1751264709174,1.07905325,108270.0,108260.0,0.80436315]
[1751264712086,1.07905325,108270.0,108260.0,0.44356315]
[1751264712288,1.07905325,108270.0,108260.0,0.60177174]
[1751264712494,1.07905325,108270.0,108260.0,0.80436315]
[1751264712692,1.14185325,108270.0,108260.0,0.80436315]
[1751264714099,1.14185325,108270.0,108260.0,0.60177174]
[1751264716197,1.19723215,108270.0,108260.0,0.60177174]
[1751264717000,0.51043215,108270.0,108260.0,0.60177174]
[1751264717297,1.19719215,108270.0,108260.0,0.60177174]
[1751264717798,1.19715215,108270.0,108260.0,0.21017174]
[1751264718003,1.39974356,108270.0,108260.0,0.1497562]
[1751264720897,1.76054356,108270.0,108260.0,0.002]
[1751264721102,1.76054356,108270.0,108260.0,0.01598895]
[1751264722099,1.76054356,108270.0,108260.0,0.002]
[1751264722897,1.76054356,108270.0,108260.0,0.01604477]
[1751264723498,1.76054356,108270.0,108260.0,0.002]
[1751264724198,1.76050882,108270.0,108260.0,0.002]
[1751264724390,0.1477561,108260.0,108250.0,0.01915834]
[1751264724596,1.26476683,108260.0,108250.0,0.01834114]
[1751264724797,1.06217542,108260.0,108250.0,0.01834114]
[1751264725195,1.26476683,108260.0,108250.0,0.01834114]
[1751264725391,1.06217542,108260.0,108250.0,0.01834114]
[1751264729109,1.06317542,108260.0,108250.0,0.01834114]
[1751264730221,1.26576683,108260.0,108250.0,0.01834114]
[1751264730511,1.06317542,108260.0,108250.0,0.01834114]
[1751264732315,1.06317542,108260.0,108250.0,0.16611094]
[1751264732906,1.06317542,108260.0,108250.0,0.15201422]
[1751264735011,1.06317542,108260.0,108250.0,0.00424442]
[1751264735306,1.00783892,108260.0,108250.0,0.00424442]
[1751264736308,1.06317542,108260.0,108250.0,0.00424442]
[1751264736516,1.26576683,108260.0,108250.0,0.00424442]
[1751264737010,1.06317542,108260.0,108250.0,0.00424442]
[1751264737607,1.26576683,108260.0,108250.0,0.00424442]
[1751264738014,1.26576683,108260.0,108250.0,0.0184433]
[1751264739608,1.06317542,108260.0,108250.0,0.0184433]
[1751264740514,1.06317542,108260.0,108250.0,0.00424442]
[1751264745220,1.06317542,108260.0,108250.0,0.01850591]
[1751264746612,1.06317542,108260.0,108250.0,0.00424442]
[1751264747218,1.26576683,108260.0,108250.0,0.00424442]
[1751264750322,1.21043033,108260.0,108250.0,0.00424442]
[1751264751723,1.89739033,108260.0,108250.0,0.00424442]
[1751264751924,1.21043033,108260.0,108250.0,0.00424442]
[1751264752111,1.69479892,108260.0,108250.0,0.00424442]
[1751264752317,1.76863746,108260.0,108250.0,0.00424442]
[1751264752915,1.69479892,108260.0,108250.0,0.00424442]
[1751264754115,1.89739033,108260.0,108250.0,0.00424442]
[1751264756228,1.69479892,108260.0,108250.0,0.00424442]
[1751264756925,1.76863746,108260.0,108250.0,0.00424442]
[1751264760622,1.97122887,108260.0,108250.0,0.00424442]
[1751264762529,1.28426887,108260.0,108250.0,0.00424442]
[1751264762726,1.76791746,108260.0,108250.0,0.00424442]
[1751264762930,1.76791746,108260.0,108250.0,0.21531402]
[1751264764827,1.08167746,108260.0,108250.0,0.21531402]
[1751264765029,1.76791746,108260.0,108250.0,0.21531402]
[1751264765229,1.00783892,108260.0,108250.0,0.21531402]
[1751264765428,1.76783746,108260.0,108250.0,0.21531402]
[1751264765738,1.69399892,108260.0,108250.0,0.21531402]
[1751264766627,0.1487561,108260.0,108250.0,0.21531402]
[1751264766831,0.89026852,108260.0,108250.0,0.45010543]
[1751264767036,0.89026852,108260.0,108250.0,0.26179835]
[1751264767037,1.29545134,108260.0,108250.0,0.26179835]
[1751264769243,0.73737134,108260.0,108250.0,0.26179835]
[1751264769444,0.68201892,108260.0,108250.0,0.26179835]
[1751264769646,0.73737134,108260.0,108250.0,0.26179835]
[1751264771251,0.68201892,108260.0,108250.0,0.26179835]
[1751264771449,0.73737134,108260.0,108250.0,0.60831402]
[1751264771649,0.68201892,108260.0,108250.0,0.60831402]
[1751264777854,0.68201892,108260.0,108250.0,0.62242714]
[1751264782058,0.68201892,108260.0,108250.0,0.82500995]
[1751264782352,1.24049892,108260.0,108250.0,0.81090543]
[1751264784457,1.03790751,108260.0,108250.0,0.81090543]
[1751264786259,1.03790751,108260.0,108250.0,0.82495844]
[1751264789457,0.1487561,108260.0,108250.0,0.82495844]
[1751264789662,0.47942751,108260.0,108250.0,0.82495844]
[1751264790259,0.2768361,108260.0,108250.0,0.82495844]
[1751264790457,0.47942751,108260.0,108250.0,0.82495844]
[1751264792264,0.47942751,108260.0,108250.0,0.85267398]
[1751264793065,0.51162751,108260.0,108250.0,0.85267398]
[1751264796158,0.51162751,108260.0,108250.0,0.49187398]
[1751264796360,0.51162751,108260.0,108250.0,0.85267398]
[1751264796564,0.51162751,108260.0,108250.0,0.82047398]
[1751264801869,0.71421892,108260.0,108250.0,0.82047398]
[1751264802865,0.74541892,108260.0,108250.0,0.82047398]
[1751264805568,0.74541892,108260.0,108250.0,0.82048987]
[1751264806271,0.54282751,108260.0,108250.0,0.82048987]
[1751264808669,0.54282751,108260.0,108250.0,0.74391389]
[1751264808866,0.57532751,108260.0,108250.0,0.74391389]
[1751264809268,0.77791892,108260.0,108250.0,0.54132248]
[1751264809873,0.77791892,108260.0,108250.0,0.74391389]
[1751264815278,0.77791892,108260.0,108250.0,0.77162943]
[1751264815977,0.77791892,108260.0,108250.0,0.41082943]
[1751264816176,0.77791892,108260.0,108250.0,0.77162943]
[1751264816776,0.77791892,108260.0,108250.0,0.80292943]
[1751264817782,0.77791892,108260.0,108250.0,0.8254558]
[1751264819881,0.77791892,108260.0,108250.0,0.62286439]
[1751264820079,0.77791892,108260.0,108250.0,0.58589846]
[1751264820283,0.3727361,108260.0,108250.0,0.58589846]
[1751264820579,0.77791892,108260.0,108250.0,0.60102248]
[1751264822181,0.77791892,108260.0,108250.0,0.56972248]
[1751264828393,0.3727361,108260.0,108250.0,0.56972248]
[1751264828587,0.77791892,108260.0,108250.0,0.56972248]
[1751264834698,1.33611892,108260.0,108250.0,0.56972248]
[1751264840904,1.33611892,108260.0,108250.0,0.56974299]
[1751264845612,1.33611892,108260.0,108250.0,0.20894299]
[1751264845813,1.33611892,108260.0,108250.0,0.56974299]
[1751264849916,1.33611892,108260.0,108250.0,0.20894299]
[1751264850117,1.33611892,108260.0,108250.0,0.56974299]
[1751264852618,1.33611892,108260.0,108250.0,0.20894299]
[1751264852812,1.33611892,108260.0,108250.0,0.56974299]
[1751264857021,1.39147134,108260.0,108250.0,0.56974299]
[1751264860623,1.33611892,108260.0,108250.0,0.56974299]
[1751264860918,1.33611892,108260.0,108250.0,0.20894299]
[1751264861123,1.33611892,108260.0,108250.0,0.56974299]
[1751264861421,1.39147134,108260.0,108250.0,0.56974299]
[1751264861622,1.33611892,108260.0,108250.0,0.56974299]
[1751264862523,1.39147134,108260.0,108250.0,0.56974299]
[1751264863118,1.33611892,108260.0,108250.0,0.58418267]
[1751264864925,1.33611892,108260.0,108250.0,0.22338267]
[1751264865127,1.33611892,108260.0,108250.0,0.58418267]
[1751264865324,1.33611892,108260.0,108250.0,0.58419118]
[1751264865631,1.33611892,108260.0,108250.0,0.22339118]
[1751264865925,1.33611892,108260.0,108250.0,0.58419118]
[1751264866825,1.33611892,108260.0,108250.0,0.5697515]
[1751264868432,1.33611892,108260.0,108250.0,0.55566209]
[1751264871535,1.33611892,108260.0,108250.0,0.57010177]
[1751264871735,1.33611892,108260.0,108250.0,0.58419515]
[1751264875134,1.33611892,108260.0,108250.0,0.56975547]
[1751264882751,1.33523892,108260.0,108250.0,0.56975547]
[1751264891556,0.43838282,108260.0,108250.0,0.77234688]
[1751264891856,1.06834751,108260.0,108250.0,0.83514688]
[1751264892154,1.27093892,108260.0,108250.0,0.83514688]
[1751264892858,1.12318282,108260.0,108250.0,0.83514688]
[1751264893058,0.718,108260.0,108250.0,0.83514688]
[1751264893259,0.92059141,108260.0,108250.0,0.83514688]
[1751264894255,0.92059141,108260.0,108250.0,0.86614688]
[1751264896062,1.06834751,108260.0,108250.0,0.86614688]
[1751264896559,0.38354751,108260.0,108250.0,0.86614688]
[1751264896759,1.06834751,108260.0,108250.0,0.86614688]
[1751264898864,0.38354751,108260.0,108250.0,0.86614688]
[1751264899065,1.06830751,108260.0,108250.0,0.86614688]
[1751264900263,1.06830751,108260.0,108250.0,0.83514688]
[1751264900761,0.38354751,108260.0,108250.0,0.83514688]
[1751264900966,0.51114751,108260.0,108250.0,0.83514688]
[1751264905772,0.71373892,108260.0,108250.0,0.63255547]
[1751264908077,0.74563892,108260.0,108250.0,0.63255547]
[1751264908273,0.77793892,108260.0,108250.0,0.63255547]
[1751264910279,0.77793892,108260.0,108250.0,0.60015547]
[1751264911877,0.65033892,108260.0,108250.0,0.60015547]
[1751264912080,1.33509892,108260.0,108250.0,0.60015547]
[1751264924596,0.65033892,108260.0,108250.0,0.60015547]
[1751264924786,1.33505892,108260.0,108250.0,0.60015547]
[1751264927096,1.33505892,108260.0,108250.0,0.80274688]
[1751264927897,1.33505892,108260.0,108250.0,0.44194688]
[1751264928095,1.33505892,108260.0,108250.0,0.80274688]
[1751264931800,1.33505892,108260.0,108250.0,0.83971281]
[1751264932002,1.33505892,108260.0,108250.0,0.6371214]
[1751264933596,1.33505892,108260.0,108250.0,0.60010312]
[1751264942707,1.33505892,108260.0,108250.0,0.5849791]
[1751264945408,1.33505892,108260.0,108250.0,0.1937791]
[1751264945611,1.33505892,108260.0,108250.0,0.5545791]
[1751264949014,1.33505892,108260.0,108250.0,0.59154503]
[1751264950708,1.33505892,108260.0,108250.0,0.5545791]
[1751264959123,1.39041134,108260.0,108250.0,0.5545791]
[1751264963021,1.39041134,108260.0,108250.0,0.54053807]
[1751264963918,1.95380275,108260.0,108250.0,0.0183462]
[1751264964221,1.95380275,108260.0,108250.0,0.00424442]
[1751264967627,2.13855475,108260.0,108250.0,0.00424442]
[1751264970627,1.95380275,108260.0,108250.0,0.00424442]
[1751264972725,0.1477698,108250.0,108240.0,0.1847247]
[1751264973026,0.64795262,108250.0,108240.0,0.1847247]
[1751264973617,0.64795262,108250.0,108240.0,0.147779]
[1751264974624,0.64795262,108250.0,108230.0,0.64100505]
[1751264974625,0.1477834,108240.0,108230.0,0.64100505]
[1751264974830,1.33420622,108240.0,108230.0,0.65531538]
[1751264976021,1.33420622,108240.0,108230.0,0.65931538]
[1751264976733,1.33520622,108240.0,108230.0,0.66331538]
[1751264981136,0.77812622,108240.0,108230.0,0.66331538]
[1751264981337,0.77812622,108240.0,108230.0,0.69381538]
[1751264985341,0.77812622,108240.0,108230.0,0.66331538]
[1751264987342,0.77812622,108240.0,108230.0,0.24307307]
[1751264987538,1.13892622,108240.0,108230.0,0.21534902]
[1751264987838,1.34151763,108240.0,108230.0,0.02231033]
[1751264988543,1.34151763,108240.0,108230.0,0.008]
[1751264988841,1.13792622,108240.0,108230.0,0.008]
[1751264989033,1.13792622,108240.0,108230.0,0.1557968]
[1751264989437,1.13792622,108240.0,108230.0,0.004]
[1751264989641,1.13792622,108240.0,108230.0,0.007]
[1751264990341,1.19327864,108240.0,108230.0,0.003]
[1751264990544,1.19327864,108240.0,108230.0,0.005]
[1751264990845,1.19327864,108240.0,108230.0,0.003]
[1751264993142,1.19327864,108240.0,108230.0,0.01744316]
[1751264996948,1.19327864,108240.0,108230.0,0.003]
[1751264997254,1.19327864,108240.0,108230.0,0.1507968]
[1751264999447,1.06571864,108240.0,108230.0,0.2139968]
[1751264999648,1.75047864,108240.0,108230.0,0.2139968]
[1751265007858,1.75047864,108240.0,108230.0,0.1827968]
[1751265008259,1.75047864,108240.0,108230.0,0.2145968]
[1751265012564,1.38967864,108240.0,108230.0,0.2145968]
[1751265012753,1.75047864,108240.0,108230.0,0.2145968]
[1751265012957,1.06571864,108240.0,108230.0,0.2145968]
[1751265013163,1.39047864,108240.0,108230.0,0.2145968]
[1751265013465,0.64071864,108240.0,108230.0,0.41718821]
[1751265013764,0.53356723,108240.0,108230.0,0.77798821]
[1751265014064,0.47821481,108240.0,108230.0,0.80958821]
[1751265014265,0.33043141,108240.0,108230.0,0.80958821]
[1751265014563,0.47821461,108240.0,108230.0,0.82382507]
[1751265014959,1.01635913,108250.0,108240.0,0.1477832]
[1751265015164,1.14419913,108250.0,108240.0,0.2428832]
[1751265016064,0.64439913,108250.0,108240.0,0.2428832]
[1751265016262,0.58904671,108250.0,108240.0,0.2428832]
[1751265017951,0.58904671,108250.0,108240.0,0.44547461]
[1751265018262,0.58904671,108250.0,108240.0,0.2428832]
[1751265019562,0.05535242,108260.0,108250.0,0.1477695]
[1751265019865,0.05535242,108260.0,108250.0,0.6071089]
[1751265019866,0.55293872,108260.0,108250.0,0.6071089]
[1751265020056,0.58573872,108260.0,108250.0,0.6071089]
[1751265020660,0.58773872,108260.0,108250.0,0.6071089]
[1751265020860,0.58973872,108260.0,108250.0,0.6071089]
[1751265021258,0.71757872,108260.0,108250.0,0.6071089]
[1751265021459,1.27529872,108260.0,108250.0,0.6071089]
[1751265021963,1.30829872,108260.0,108250.0,0.6071089]
[1751265022163,1.33889872,108260.0,108250.0,0.6071089]
[1751265022759,1.33889872,108260.0,108250.0,0.5761089]
[1751265028572,1.33889872,108260.0,108250.0,0.5391695]
[1751265028864,1.33889872,108260.0,108250.0,0.5085695]
[1751265030470,1.33889872,108260.0,108250.0,0.1477695]
[1751265034862,1.54149013,108260.0,108250.0,0.1477695]
[1751265035073,0.1477696,108250.0,108240.0,0.6194029]
[1751265035373,0.64945242,108250.0,108240.0,0.6194029]
[1751265038771,0.64945242,108250.0,108240.0,0.5085832]
[1751265044376,0.2442696,108250.0,108240.0,0.5085832]
[1751265044776,1.20697242,108250.0,108240.0,0.5085832]
[1751265058284,1.33477242,108250.0,108240.0,0.5085832]
[1751265058486,1.33473242,108250.0,108240.0,0.5085832]
[1751265064289,0.9295496,108250.0,108240.0,0.5085832]
[1751265064589,1.39008484,108250.0,108240.0,0.5085832]
[1751265069088,1.39008484,108250.0,108240.0,0.53630725]
[1751265070392,1.39008484,108250.0,108240.0,0.38852405]
[1751265071195,1.39008484,108250.0,108240.0,0.40255774]
[1751265071596,1.39008484,108250.0,108240.0,0.40255769]
[1751265073995,1.39008484,108250.0,108240.0,0.55034089]
[1751265079006,1.39008484,108250.0,108240.0,0.40255769]
[1751265083000,1.39008484,108250.0,108240.0,0.38852405]
[1751265086209,1.39008484,108250.0,108240.0,0.53630735]
[1751265089209,1.39008484,108250.0,108240.0,0.5085833]
[1751265091107,0.83264484,108250.0,108240.0,0.5085833]
[1751265091311,1.35894484,108250.0,108240.0,0.5709833]
[1751265093109,1.35894484,108250.0,108240.0,0.58503725]
[1751265094015,0.67390484,108250.0,108240.0,0.58503725]
[1751265094216,1.32582484,108250.0,108240.0,0.58503725]
[1751265096709,1.32582484,108250.0,108240.0,0.61743725]
[1751265099221,1.32582484,108250.0,108240.0,0.6451613]
[1751265103324,1.27047242,108250.0,108240.0,0.6451613]
[1751265104427,0.71327242,108250.0,108240.0,0.6451613]
[1751265104629,1.27047242,108250.0,108240.0,0.6451613]
[1751265105225,0.35036101,108250.0,108240.0,0.6451613]
[1751265105421,1.03516101,108250.0,108240.0,0.63110735]
[1751265105827,1.03516101,108250.0,108240.0,0.64509945]
[1751265106925,1.03516101,108250.0,108240.0,0.63110735]
[1751265107227,1.03516101,108250.0,108240.0,0.64510123]
[1751265111232,1.03516101,108250.0,108240.0,0.63110735]
[1751265111621,1.23775242,108250.0,108240.0,0.63110735]
[1751265113834,1.26955242,108250.0,108240.0,0.63110735]
[1751265117333,1.26955242,108250.0,108240.0,0.59870735]
[1751265117534,1.06696101,108250.0,108240.0,0.59870735]
[1751265118437,1.26955242,108250.0,108240.0,0.59870735]
[1751265118832,1.30005242,108250.0,108240.0,0.59870735]
[1751265121139,1.09746101,108250.0,108240.0,0.59870735]
[1751265122029,1.06692101,108250.0,108240.0,0.59870735]
[1751265122437,1.06692101,108250.0,108240.0,0.62900735]
[1751265126740,1.09922101,108250.0,108240.0,0.59870735]
[1751265133239,1.13112101,108250.0,108240.0,0.59870735]
[1751265137655,0.8642496,108250.0,108240.0,0.59870735]
[1751265137948,1.06684101,108250.0,108240.0,0.62970735]
[1751265138156,1.06684101,108250.0,108240.0,0.83229876]
[1751265138652,1.06684101,108250.0,108240.0,0.62970735]
[1751265144054,1.06684101,108250.0,108240.0,0.83229876]
[1751265144458,1.06684101,108250.0,108240.0,0.59870735]
[1751265145258,1.06684101,108250.0,108240.0,0.63567328]
[1751265145556,0.38216101,108250.0,108240.0,0.59870735]
[1751265145756,1.06684101,108250.0,108240.0,0.59870735]
[1751265146057,1.06684101,108250.0,108240.0,0.80129876]
[1751265147553,0.36195141,108250.0,108240.0,0.80129876]
[1751265147748,0.50972121,108250.0,108240.0,0.80129876]
[1751265149063,0.50972121,108250.0,108240.0,0.83826469]
[1751265149259,0.50972121,108250.0,108240.0,0.85270472]
[1751265150057,0.50972121,108250.0,108240.0,0.83826469]
[1751265151160,0.50972121,108250.0,108240.0,0.63567328]
[1751265151360,0.50972121,108250.0,108240.0,0.83826469]
[1751265152063,0.36195141,108250.0,108240.0,0.83826469]
[1751265158565,0.50972111,108250.0,108240.0,0.83826469]
[1751265158967,0.36195141,108250.0,108240.0,0.83826469]
[1751265160469,0.50972111,108250.0,108240.0,0.83826469]
[1751265165178,0.36195141,108250.0,108240.0,0.83826469]
[1751265166282,0.36195141,108250.0,108240.0,0.47746469]
[1751265166480,0.36195141,108250.0,108240.0,0.83826469]
[1751265166679,0.39485141,108250.0,108240.0,0.83826469]
[1751265166879,0.54262111,108250.0,108240.0,0.83826469]
[1751265167281,0.54262111,108250.0,108240.0,0.81054064]
[1751265167981,0.54262111,108250.0,108240.0,0.44974064]
[1751265168281,0.39485141,108250.0,108240.0,0.8526868]
[1751265169782,0.42505141,108250.0,108240.0,0.8526868]
[1751265170684,0.29749141,108250.0,108240.0,0.8526868]
[1751265170984,0.42501141,108250.0,108240.0,0.8526868]
[1751265172286,0.42501141,108250.0,108240.0,0.82498057]
[1751265173488,0.57278111,108250.0,108240.0,0.82498057]
[1751265174689,0.42501141,108250.0,108240.0,0.82498057]
[1751265178193,0.42501141,108250.0,108240.0,0.88042947]
[1751265178892,0.42501141,108250.0,108240.0,0.82498057]
[1751265184699,0.29749141,108250.0,108240.0,0.82498057]
[1751265189302,0.42501141,108250.0,108240.0,0.82498057]
[1751265190501,0.42501141,108250.0,108240.0,0.88042947]
[1751265190999,0.42501141,108250.0,108240.0,0.51962947]
[1751265191200,0.42501141,108250.0,108240.0,0.88042947]
[1751265191905,0.57278111,108250.0,108240.0,0.88042947]
[1751265193610,0.42501141,108250.0,108240.0,0.88042947]
[1751265194712,0.57278111,108250.0,108240.0,0.88042947]
[1751265197911,0.42501141,108250.0,108240.0,0.88042947]
[1751265199214,0.42501141,108250.0,108240.0,0.67783806]
[1751265199410,0.42501141,108250.0,108240.0,0.88042947]
[1751265199610,0.42501141,108250.0,108240.0,0.88042946]
[1751265200415,0.42501141,108250.0,108240.0,0.82498056]
[1751265203012,0.42501141,108250.0,108240.0,0.46418056]
[1751265203216,0.42501141,108250.0,108240.0,0.82498056]
[1751265206812,0.57278111,108250.0,108240.0,0.62238915]
[1751265207218,0.57278111,108250.0,108240.0,0.59148915]
[1751265207622,0.57278111,108250.0,108240.0,0.57704923]
[1751265210218,0.57278111,108250.0,108240.0,0.60476873]
[1751265215118,0.0318,108250.0,108240.0,1.00995155]
[1751265215316,0.05535242,108260.0,108250.0,0.1477697]
[1751265215317,0.26579141,108260.0,108250.0,0.1477697]
[1751265215517,0.39327141,108260.0,108250.0,0.8003772]
[1751265216017,0.59586282,108260.0,108250.0,0.8003772]
[1751265216525,0.59986282,108260.0,108250.0,0.8003772]
[1751265216727,0.39727141,108260.0,108250.0,0.8003772]
[1751265218425,0.19468,108260.0,108250.0,0.8003772]
[1751265218623,0.39727141,108260.0,108250.0,0.8325772]
[1751265219021,0.33407141,108260.0,108250.0,0.90725925]
[1751265222820,0.004,108260.0,108250.0,0.90725925]
[1751265223023,0.20659141,108260.0,108250.0,0.90725925]
[1751265223222,0.004,108260.0,108250.0,0.90725925]
[1751265223529,0.20659141,108260.0,108250.0,0.90725925]
[1751265234335,0.004,108260.0,108250.0,0.90725925]
[1751265234531,0.20659141,108260.0,108250.0,0.90725925]
[1751265235236,0.40918282,108260.0,108250.0,0.90725925]
[1751265235737,0.40918282,108260.0,108250.0,1.46405925]
[1751265239237,0.55693882,108260.0,108250.0,1.46405925]
[1751265245345,0.58743882,108260.0,108250.0,1.46405925]
[1751265246752,0.58743882,108260.0,108250.0,1.50102518]
[1751265247053,0.58743882,108260.0,108250.0,1.46405925]
[1751265247252,0.58743882,108260.0,108250.0,1.50102518]
[1751265247652,0.58743882,108260.0,108250.0,1.29843377]
[1751265247855,0.58743882,108260.0,108250.0,1.50102518]
[1751265248356,0.71487882,108260.0,108250.0,0.67873377]
[1751265248552,0.77787882,108260.0,108250.0,0.64793377]
[1751265251764,0.77787882,108260.0,108250.0,0.25016784]
[1751265252264,0.77787882,108260.0,108250.0,0.61096784]
[1751265266076,0.77787882,108260.0,108250.0,0.25016784]
[1751265266472,0.83323124,108260.0,108250.0,0.22245175]
[1751265267978,0.77787882,108260.0,108250.0,0.22245175]
[1751265270480,0.77787882,108260.0,108250.0,0.25016784]
[1751265275682,0.77787882,108260.0,108250.0,0.26460788]
[1751265276187,0.77787882,108260.0,108240.0,0.24940132]
[1751265276188,0.1477697,108250.0,108240.0,0.24940132]
[1751265276383,1.20343252,108250.0,108240.0,0.28634692]
[1751265276781,1.20343252,108250.0,108240.0,0.24938099]
[1751265277988,1.20343252,108250.0,108240.0,0.2216664]
[1751265279584,1.20343252,108250.0,108240.0,0.23565836]
[1751265280491,1.20343252,108250.0,108240.0,0.19871276]
[1751265280890,1.20343252,108250.0,108240.0,0.1847208]
[1751265282687,1.27732242,108250.0,108240.0,0.1477833]
[1751265282880,1.31426772,108250.0,108240.0,0.1477833]
[1751265303220,1.31426772,108250.0,108240.0,0.16185743]
[1751265305917,1.27732242,108250.0,108240.0,0.16185743]
[1751265306321,1.33267484,108250.0,108240.0,0.16185743]
[1751265308224,1.33267484,108250.0,108240.0,0.1477833]
[1751265308421,1.33267484,108250.0,108240.0,0.16186809]
[1751265311325,0.57340343,108250.0,108240.0,0.16186809]
[1751265311526,1.36631484,108250.0,108240.0,0.22646809]
[1751265311727,1.36631484,108250.0,108240.0,0.25926809]
[1751265314129,1.36631484,108250.0,108240.0,0.27370973]
[1751265314330,1.43011484,108250.0,108240.0,0.27370973]
[1751265314532,1.46051484,108250.0,108240.0,0.27370973]
[1751265316733,1.46051484,108250.0,108240.0,0.25962494]
[1751265316935,1.46051484,108250.0,108240.0,0.2451833]
[1751265317136,1.46051484,108250.0,108240.0,0.27372532]
[1751265320134,1.40516242,108250.0,108240.0,0.27372532]
[1751265322336,1.37206242,108250.0,108240.0,0.27372532]
[1751265322741,1.34136242,108250.0,108240.0,0.27372532]
[1751265324135,1.39671484,108250.0,108240.0,0.25928359]
[1751265326236,1.16372343,108250.0,108240.0,0.25928359]
[1751265327742,1.36631484,108250.0,108240.0,0.2451833]
[1751265329345,1.36631484,108250.0,108240.0,0.25926271]
[1751265331346,1.39921484,108250.0,108240.0,0.25926271]
[1751265333245,1.46221484,108250.0,108240.0,0.25926271]
[1751265333946,1.46221484,108250.0,108240.0,0.22646271]
[1751265336048,1.25962343,108250.0,108240.0,0.22646271]
[1751265336344,1.25962343,108250.0,108240.0,0.25418457]
[1751265338347,1.46221484,108250.0,108240.0,0.25418457]
[1751265339548,1.46221484,108250.0,108240.0,0.22098457]
[1751265342749,1.46221484,108250.0,108240.0,0.20690516]
[1751265342951,1.46221484,108250.0,108240.0,0.22098135]
[1751265347261,1.46221484,108250.0,108240.0,0.18958135]
[1751265348860,1.46221484,108250.0,108240.0,0.18958572]
[1751265350563,1.46221484,108250.0,108240.0,0.16186386]
[1751265353555,1.46221484,108250.0,108240.0,0.1477833]
[1751265358071,0.1477833,108240.0,108230.0,0.33837462]
[1751265358372,1.21145753,108240.0,108230.0,0.17550706]
[1751265358565,1.26680995,108240.0,108230.0,0.17550706]
[1751265358872,1.26680995,108240.0,108230.0,0.1477852]
[1751265359067,1.06421854,108240.0,108230.0,0.1477852]
[1751265360168,1.06421854,108240.0,108230.0,0.1487852]
[1751265360367,1.26680995,108240.0,108230.0,0.1487852]
[1751265360568,1.26680995,108240.0,108230.0,0.16506646]
[1751265361173,1.21145753,108240.0,108230.0,0.16506646]
[1751265361674,1.00886612,108240.0,108230.0,0.1507852]
[1751265372576,0.1477968,108230.0,108220.0,0.09681179]
[1751265372882,1.59785962,108230.0,108220.0,0.19076958]
[1751265373082,1.69255962,108230.0,108220.0,0.19076958]
[1751265374682,1.69355962,108230.0,108220.0,0.19376958]
[1751265375881,1.69355962,108230.0,108220.0,0.19676958]
[1751265376075,1.69355962,108230.0,108220.0,0.16904772]
[1751265378877,1.69355962,108230.0,108220.0,0.1538105]
[1751265379083,2.22556292,108230.0,108190.0,0.2111]
[1751265379278,0.001,108150.0,108140.0,0.07385059]
[1751265379475,0.1479198,108140.0,108130.0,0.06542477]
[1751265379677,0.96857423,108140.0,108110.0,0.00432106]
[1751265379882,1.27639268,108120.0,108110.0,0.16131777]
[1751265380077,1.27739268,108120.0,108110.0,0.0832733]
[1751265380274,1.27639268,108120.0,108110.0,0.16131777]
[1751265380673,1.27739268,108120.0,108110.0,0.0832733]
[1751265381285,1.2868875,108120.0,108110.0,0.0832733]
[1751265381477,1.2858875,108120.0,108110.0,0.16131777]
[1751265381678,1.30937871,108120.0,108110.0,0.0832733]
[1751265381891,1.36573113,108120.0,108110.0,0.0882733]
[1751265382087,1.31037871,108120.0,108110.0,0.0882733]
[1751265382381,1.31137871,108120.0,108110.0,0.07982106]
[1751265383276,1.31137871,108120.0,108110.0,0.01532106]
[1751265383479,1.89357871,108120.0,108110.0,0.07932106]
[1751265384284,0.90453313,108120.0,108110.0,0.30532633]
[1751265384680,0.90353313,108120.0,108110.0,0.30532633]
[1751265385087,0.90453313,108120.0,108110.0,0.30532633]
[1751265385389,1.10695592,108120.0,108110.0,0.30532633]
[1751265385586,1.10795592,108120.0,108110.0,0.30532633]
[1751265385783,1.10795592,108120.0,108110.0,0.15736553]
[1751265386086,1.10795592,108120.0,108110.0,0.30532633]
[1751265386778,1.10795592,108120.0,108110.0,0.07932106]
[1751265386984,1.10795592,108120.0,108110.0,0.26427985]
[1751265387184,1.83019592,108120.0,108110.0,0.26427985]
[1751265387378,1.83119592,108120.0,108110.0,0.26427985]
[1751265387678,1.83019592,108120.0,108110.0,0.26427985]
[1751265387884,1.83119592,108120.0,108110.0,0.11631905]
[1751265388186,1.83119592,108120.0,108110.0,0.26427985]
[1751265388881,1.83119592,108120.0,108110.0,0.30532633]
[1751265390181,1.24719592,108120.0,108110.0,0.30532633]
[1751265390377,1.24619592,108120.0,108110.0,0.30532633]
[1751265390577,1.10795592,108120.0,108110.0,0.30532633]
[1751265390791,1.10695592,108120.0,108110.0,0.30532633]
[1751265390989,1.10795592,108120.0,108110.0,0.30532633]
[1751265391188,0.74609121,108120.0,108110.0,0.30532633]
[1751265391384,0.7246,108120.0,108110.0,0.50874912]
[1751265392891,0.7246,108120.0,108110.0,0.30532633]
[1751265393891,0.7236,108120.0,108110.0,0.50874912]
[1751265394684,0.8715471,108120.0,108110.0,0.50874912]
[1751265394894,0.8715471,108120.0,108110.0,0.30532633]
[1751265396196,0.7236,108120.0,108110.0,0.30532633]
[1751265396890,0.8715471,108120.0,108110.0,0.30532633]
[1751265397992,0.7236,108120.0,108110.0,0.30532633]
[1751265400297,0.74743739,108120.0,108110.0,0.30532633]
[1751265402595,0.74743739,108120.0,108110.0,0.22728186]
[1751265402801,0.74743739,108120.0,108110.0,0.30532633]
[1751265407096,0.74743739,108120.0,108110.0,0.50874912]
[1751265408306,0.80278981,108120.0,108110.0,0.50874912]
[1751265409198,0.02583739,108120.0,108110.0,0.83306112]
[1751265409400,0.03106938,108130.0,108120.0,0.1479471]
[1751265409602,0.3608,108140.0,108130.0,0.1479335]
[1751265409907,0.3608,108140.0,108130.0,0.50542013]
[1751265410606,0.3608,108140.0,108130.0,0.30199734]
[1751265411503,0.3608,108140.0,108130.0,0.30399734]
[1751265411898,0.3618,108140.0,108130.0,0.30699734]
[1751265412501,0.56522279,108140.0,108130.0,0.30699734]
[1751265414594,0.3618,108140.0,108130.0,0.30699734]
[1751265416008,0.56522279,108140.0,108130.0,0.30699734]
[1751265416910,0.71314259,108140.0,108130.0,0.30699734]